{"text_format":"3","workbook":"xlsx","n_sheets":2,"sheets":["Formulário de Orçamento","Discriminação de Custos"],"not_rendered":{"charts":1,"images":2,"defined_names":4},"read":"whole","date_system":"1900"}

{"sheet":"Formulário de Orçamento","index":0,"n_rows":48,"n_cols":7,"rows_kept":48,"merged":[[15,1,25,5],[29,1,31,5],[35,1,37,5],[43,1,45,5]]}
[]
[null,"FORMULÁRIO DE ORÇAMENTO DE CONSTRUÇÃO",{"$nulls":4}," "]
[]
[]
[null,"DADOS DO CLIENTE",null,null,"DADOS DO EMPREITEIRO"]
[null,"Nome","Manuel Machado",null,"Empresa","Fabrikam, Inc."]
[null,"Morada","Rua da Liberdade, 123",null,"Nome","João Mena"]
[null,"Localidade, Código Postal","1000-100 Lisboa",null,"Morada","Rua Augusta, 321"]
[null,"Telefone",8885550111,null,"Localidade, Código Postal","1000-100 Lisboa"]
[null,"Correio Eletrónico","manuel@proseware.com",null,"Telefone",8885550123]
[{"$nulls":4},"Correio Eletrónico","joao@fabrikam.com"]
[null,"Nome do Projeto","Escadas para escritório",null,"Data de conclusão","2013-07-14"]
[]
[null,"TRABALHOS"]
[]
[null,"Descrevem-se aqui os trabalhos a serem realizados. Escreva todas as especificações que desejar. Este será um projeto fictício relativo à construção de um conjunto grande de escadas. Utilizaremos apenas madeira 5x10 e 5x20, assim como suportes para vigas, para construir a estrutura. As escadas serão cortadas a partir do material 5x10. Serão utilizados parafusos iguais ou superiores a 2 pol. E os pregos serão iguais ou superiores a 15 g. Concebidas para suportar um máximo de 227 quilos por degrau. Será fixada à casa uma plataforma de apoio. O empreiteiro compromete-se a deixar o local limpo."]
{"$rows_empty":11}
[null,"NÃO INCLUÍDO"]
[]
[null,"Não serão instalados corrimões. O terreno será preparado pelo cliente. As escadas serão pintadas pelo cliente."]
[]
[]
[]
[null,"PROPOSTA DA EMPRESA"]
[]
[null,"Nós, a Fabrikam, Inc., comprometemo-nos a realizar os trabalhos mencionados acima, a serem terminados a 14/7/2011 pelo montante de 476,43 €."]
[]
[]
[]
[null,"Submetido por (Representante da Empresa)",{"$nulls":3},"Data"]
[]
[null,"ACEITAÇÃO PELO CLIENTE"]
[]
[null,"Eu, Manuel Machado, aceito os trabalhos mencionados acima, com data acordada de conclusão para o dia 14/7/2011 pelo montante de 476,43 €."]
[]
[]
[]
[null,"Submetido por (proprietário da casa ou representante autorizado)",{"$nulls":3},"Data"]

{"sheet":"Discriminação de Custos","index":1,"n_rows":47,"n_cols":6,"rows_kept":47,"merged":[[42,3,42,4],[43,3,43,4],[44,3,44,4],[45,3,45,4],[46,3,46,4],[47,3,47,4],[48,3,48,4],[49,3,49,4]]}
[]
[null,"RESUMO DO ORÇAMENTO",{"$nulls":3}," "]
[]
[]
[null,"LISTA DE MATERIAIS E CUSTOS"]
[]
[null,"Qtd.","Descrição","Custo","Total"," "]
[null,5,"Madeira 5x20x305",{"v":6.75,"d":"6.75 €"},{"$f":"ItensOferta[Custo]*ItensOferta[Qtd.]","v":{"v":33.75,"d":"33.75 €"}},{"$f":"_xlfn.RANK.EQ(ItensOferta[[#This Row],[Total]],ItensOferta[Total])","v":4}]
[null,20,"Madeira 5x10x305",{"v":4.97,"d":"4.97 €"},{"$f":"ItensOferta[Custo]*ItensOferta[Qtd.]","v":{"v":99.39999999999999,"d":"99.40 €"}},{"$f":"_xlfn.RANK.EQ(ItensOferta[[#This Row],[Total]],ItensOferta[Total])","v":2}]
[null,30,"Suportes para vigas",{"v":2.49,"d":"2.49 €"},{"$f":"ItensOferta[Custo]*ItensOferta[Qtd.]","v":{"v":74.7,"d":"74.70 €"}},{"$f":"_xlfn.RANK.EQ(ItensOferta[[#This Row],[Total]],ItensOferta[Total])","v":3}]
[null,2,"Caixa de parafusos, 2 pol.",{"v":6.67,"d":"6.67 €"},{"$f":"ItensOferta[Custo]*ItensOferta[Qtd.]","v":{"v":13.34,"d":"13.34 €"}},{"$f":"_xlfn.RANK.EQ(ItensOferta[[#This Row],[Total]],ItensOferta[Total])","v":6}]
[null,2,"Caixa de pregos, 15 g",{"v":3.25,"d":"3.25 €"},{"$f":"ItensOferta[Custo]*ItensOferta[Qtd.]","v":{"v":6.5,"d":"6.50 €"}},{"$f":"_xlfn.RANK.EQ(ItensOferta[[#This Row],[Total]],ItensOferta[Total])","v":7}]
[null,2,"Par de luvas, de pele",{"v":7.75,"d":"7.75 €"},{"$f":"ItensOferta[Custo]*ItensOferta[Qtd.]","v":{"v":15.5,"d":"15.50 €"}},{"$f":"_xlfn.RANK.EQ(ItensOferta[[#This Row],[Total]],ItensOferta[Total])","v":5}]
[null,2,"Custos de mão-de-obra",{"v":100,"d":"100.00 €"},{"$f":"ItensOferta[Custo]*ItensOferta[Qtd.]","v":{"v":200,"d":"200.00 €"}},{"$f":"_xlfn.RANK.EQ(ItensOferta[[#This Row],[Total]],ItensOferta[Total])","v":1}]
[{"$nulls":4},{"$f":"ItensOferta[Custo]*ItensOferta[Qtd.]","v":0},{"$f":"_xlfn.RANK.EQ(ItensOferta[[#This Row],[Total]],ItensOferta[Total])","v":8}]
[{"$nulls":4},{"$f":"ItensOferta[Custo]*ItensOferta[Qtd.]","v":0},{"$f":"_xlfn.RANK.EQ(ItensOferta[[#This Row],[Total]],ItensOferta[Total])","v":8}]
[{"$nulls":4},{"$f":"ItensOferta[Custo]*ItensOferta[Qtd.]","v":0},{"$f":"_xlfn.RANK.EQ(ItensOferta[[#This Row],[Total]],ItensOferta[Total])","v":8}]
[{"$nulls":4},{"$f":"ItensOferta[Custo]*ItensOferta[Qtd.]","v":0},{"$f":"_xlfn.RANK.EQ(ItensOferta[[#This Row],[Total]],ItensOferta[Total])","v":8}]
[{"$nulls":4},{"$f":"ItensOferta[Custo]*ItensOferta[Qtd.]","v":0},{"$f":"_xlfn.RANK.EQ(ItensOferta[[#This Row],[Total]],ItensOferta[Total])","v":8}]
[{"$nulls":4},{"$f":"ItensOferta[Custo]*ItensOferta[Qtd.]","v":0},{"$f":"_xlfn.RANK.EQ(ItensOferta[[#This Row],[Total]],ItensOferta[Total])","v":8}]
[{"$nulls":4},{"$f":"ItensOferta[Custo]*ItensOferta[Qtd.]","v":0},{"$f":"_xlfn.RANK.EQ(ItensOferta[[#This Row],[Total]],ItensOferta[Total])","v":8}]
[{"$nulls":4},{"$f":"ItensOferta[Custo]*ItensOferta[Qtd.]","v":0},{"$f":"_xlfn.RANK.EQ(ItensOferta[[#This Row],[Total]],ItensOferta[Total])","v":8}]
[{"$nulls":4},{"$f":"ItensOferta[Custo]*ItensOferta[Qtd.]","v":0},{"$f":"_xlfn.RANK.EQ(ItensOferta[[#This Row],[Total]],ItensOferta[Total])","v":8}]
[{"$nulls":4},{"$f":"ItensOferta[Custo]*ItensOferta[Qtd.]","v":0},{"$f":"_xlfn.RANK.EQ(ItensOferta[[#This Row],[Total]],ItensOferta[Total])","v":8}]
[{"$nulls":4},{"$f":"ItensOferta[Custo]*ItensOferta[Qtd.]","v":0},{"$f":"_xlfn.RANK.EQ(ItensOferta[[#This Row],[Total]],ItensOferta[Total])","v":8}]
[{"$nulls":4},{"$f":"ItensOferta[Custo]*ItensOferta[Qtd.]","v":0},{"$f":"_xlfn.RANK.EQ(ItensOferta[[#This Row],[Total]],ItensOferta[Total])","v":8}]
[{"$nulls":4},{"$f":"ItensOferta[Custo]*ItensOferta[Qtd.]","v":0},{"$f":"_xlfn.RANK.EQ(ItensOferta[[#This Row],[Total]],ItensOferta[Total])","v":8}]
[{"$nulls":4},{"$f":"ItensOferta[Custo]*ItensOferta[Qtd.]","v":0},{"$f":"_xlfn.RANK.EQ(ItensOferta[[#This Row],[Total]],ItensOferta[Total])","v":8}]
[{"$nulls":4},{"$f":"ItensOferta[Custo]*ItensOferta[Qtd.]","v":0},{"$f":"_xlfn.RANK.EQ(ItensOferta[[#This Row],[Total]],ItensOferta[Total])","v":8}]
[{"$nulls":4},{"$f":"ItensOferta[Custo]*ItensOferta[Qtd.]","v":0},{"$f":"_xlfn.RANK.EQ(ItensOferta[[#This Row],[Total]],ItensOferta[Total])","v":8}]
[1,{"$nulls":3},{"$f":"ItensOferta[Custo]*ItensOferta[Qtd.]","v":0},{"$f":"_xlfn.RANK.EQ(ItensOferta[[#This Row],[Total]],ItensOferta[Total])","v":8}]
[2,null,null,"Subtotal",{"$f":"SUBTOTAL(109,ItensOferta[Total])","v":{"v":443.18999999999994,"d":"443.19 €"}}]
[3,null,null,"Taxa do imposto",{"v":0.075,"d":"7.50%"}]
[4,null,null,"Imposto",{"$f":"TaxaImposto*ItensOferta[[#Totals],[Total]]","v":{"v":33.23924999999999,"d":"33.24 €"}}]
[5,null,null,"Montante total",{"$f":"Imposto+ItensOferta[[#Totals],[Total]]","v":{"v":476.4292499999999,"d":"476.43 €"}}]
[]
[]
[]
[null,"DISCRIMINAÇÃO DE MATERIAIS E CUSTOS"]
[]
[]
[null,null,"TOTAL","NOTAS"]
[null,{"$f":"INDEX(ItensOferta[],MATCH(A31,ItensOferta[[ ]],0),2)","v":"Custos de mão-de-obra"},{"$f":"INDEX(ItensOferta[],MATCH(A31,ItensOferta[[ ]],0),4)","v":{"v":200,"d":"$200.00"}}]
[null,{"$f":"INDEX(ItensOferta[],MATCH(A32,ItensOferta[[ ]],0),2)","v":"Madeira 5x10x305"},{"$f":"INDEX(ItensOferta[],MATCH(A32,ItensOferta[[ ]],0),4)","v":{"v":99.39999999999999,"d":"$99.40"}}]
[null,{"$f":"INDEX(ItensOferta[],MATCH(A33,ItensOferta[[ ]],0),2)","v":"Suportes para vigas"},{"$f":"INDEX(ItensOferta[],MATCH(A33,ItensOferta[[ ]],0),4)","v":{"v":74.7,"d":"$74.70"}}]
[null,{"$f":"INDEX(ItensOferta[],MATCH(A34,ItensOferta[[ ]],0),2)","v":"Madeira 5x20x305"},{"$f":"INDEX(ItensOferta[],MATCH(A34,ItensOferta[[ ]],0),4)","v":{"v":33.75,"d":"$33.75"}}]
[null,{"$f":"INDEX(ItensOferta[],MATCH(A35,ItensOferta[[ ]],0),2)","v":"Par de luvas, de pele"},{"$f":"INDEX(ItensOferta[],MATCH(A35,ItensOferta[[ ]],0),4)","v":{"v":15.5,"d":"$15.50"}}]